Cogmind - Beta 13 @@@ ROGUE MODE // 2024.04.21 @ 17:35:28 Player: Occam Result: Destroyed by P-70 Sage with Tesla Rifle Performance ------------- Evolutions (4) 2000 Regions Visited (16) 3200 Robots Destroyed (249) 1245 Value Destroyed (9348) 9348 Prototype IDs (43) 860 Alien Tech Used (0) 0 Bonus (3042) 3042 TOTAL SCORE: 19695 Bonus ------- High Alert Combat Kills 340 Follower Combat Kills 427 Met Data Miner 300 Destroyed Z-Imprinter 1000 Triggered Deep Caves Wall 500 Exposed GOLEM Chamber 500 Friendly Fire -25 Cogmind --------- Core Integrity 0/850 Matter 254/300 Energy 99/100 System Corruption 13% Temperature Cool (0) Movement Core (50) Location -5/Proximity Caves Parts ------- > --- POWER (2) -------- (None) > --- PROPULSION (2) --- (None) > --- UTILITY (9) ------ (None) > --- WEAPON (2) ------- (None) > --- INVENTORY (5) ---- GOLEM Unit GOLEM Unit Peak State ------------ > --- POWER ------------ Assembled Flux Generator > --- PROPULSION ------- Assembled Alloy Leg Assembled Alloy Leg > --- UTILITY ---------- Assembled Nanovents Assembled Nanovents Assembled Nanovents Huge Storage Unit Assembled Biocell Array Improved Signal Interpreter Assembled Alloy Armor GOLEM Unit > --- WEAPON ----------- Assembled Focal Cannon Assembled Focal Cannon > --- INVENTORY -------- Advanced Energy Well Surveybot 24 Scanner Surveybot 24 Chip Improved Utility Shielding Zionite Weapon Casing Zionite Weapon Casing Improved Light Armor Plating Experimental Thermal Shield Force Field GOLEM Unit GOLEM Unit GOLEM Unit Improved EM Shotgun Improved EM Shotgun Long-range Missile Launcher Powered Hammer Deploy-a-Sentry [Rating: 130] Favorites ----------- Power Light Nuclear Core Engine Cooled Ion Engine Power Core Light Nuclear Core Reactor Antimatter Reactor Propulsion Armored Huge Wheel Treads Light Treads Leg Assembled Alloy Leg Wheel Armored Huge Wheel Utility Huge Storage Unit Device Structural Scanner Storage Huge Storage Unit Processor Advanced Targeting Computer Hackware Hacking Suite Protection Layered Medium Armor Plating Weapon Cooled Particle Cannon Energy Gun Heavy Particle Gun Energy Cannon Cooled Particle Cannon Ballistic Gun Improved Heavy Machine Gun Launcher Long-range Missile Launcher Impact Weapon Powered Hammer Special Melee Weapon Datajack Build | -11 -10 -10 -9 -9 -8 -7 -7 -7 -7 -6 -6 -6 -6 -6 -6 -5 ------- Run | Yrd Mat Min Mat Min Mat Fac Low Low Dat Pro Fac Low Low Zio Dee Pro Slots Evolved 8 | . . . 2 . 2 2 . . . . 2 . . . . . Power 1 | . . . . . . 1 . . . . . . . . . . Propulsion . | . . . . . . . . . . . . . . . . . Utility 7 | . . . 2 . 2 1 . . . . 2 . . . . . Weapon . | . . . . . . . . . . . . . . . . . Parts Attached 333 | 2 10 3 39 1 53 53 2 11 22 4 58 4 1 4 58 8 Power 27 | . 1 . 7 . 3 3 . 2 4 . 4 . 1 . 2 . Engine 17 | . 1 . 7 . 3 1 . 1 1 . 1 . 1 . 1 . Core 7 | . . . . . . 2 . 1 1 . 2 . . . 1 . Reactor 3 | . . . . . . . . . 2 . 1 . . . . . Propulsion 35 | . 3 1 9 . 15 4 . . 1 . 1 . . 1 . . Treads 27 | . 3 1 9 . 13 1 . . . . . . . . . . Leg . | . . . . . . . . . . . . . . . . . Wheel 8 | . . . . . 2 3 . . 1 . 1 . . 1 . . Hover . | . . . . . . . . . . . . . . . . . Flight . | . . . . . . . . . . . . . . . . . Utility 164 | 1 2 . 14 1 20 30 2 5 12 3 32 1 . . 34 7 Device 91 | 1 1 . 8 1 8 19 2 2 6 1 22 1 . . 16 3 Storage 7 | . 1 . . . 1 . . . 1 . 1 . . . 3 . Processor 3 | . . . . . 1 1 . . . . 1 . . . . . Hackware 4 | . . . . . 1 1 . . . . 1 . . . 1 . Protection 59 | . . . 6 . 9 9 . 3 5 2 7 . . . 14 4 Artifact . | . . . . . . . . . . . . . . . . . Weapon 107 | 1 4 2 9 . 15 16 . 4 5 1 21 3 . 3 22 1 Energy Gun 35 | . 1 . 4 . 7 7 . . . . . . . . 16 . Energy Cannon 19 | . . . . . 5 2 . 2 2 1 7 . . . . . Ballistic Gun 18 | 1 1 2 4 . . . . . 1 . 5 2 . 2 . . Ballistic Cannon . | . . . . . . . . . . . . . . . . . Launcher 10 | . 2 . 1 . . . . 1 . . . 1 . . 4 1 Special Weapon . | . . . . . . . . . . . . . . . . . Impact Weapon 15 | . . . . . . 6 . 1 1 . 4 . . 1 2 . Slashing Weapon . | . . . . . . . . . . . . . . . . . Piercing Weapon . | . . . . . . . . . . . . . . . . . Special Melee Weapon 10 | . . . . . 3 1 . . 1 . 5 . . . . . Unidentified Prototypes 18 | . . . 2 . 2 1 . . 3 . 2 . . . 8 . Parts Lost 54 | . . 2 6 1 1 3 . 3 8 2 6 . . . 8 14 Power 6 | . . . . . . . . 1 2 . 1 . . . 1 1 Propulsion 4 | . . 1 1 . . 1 . . 1 . . . . . . . Utility 36 | . . . 4 1 1 2 . 2 4 1 4 . . . 7 10 Weapon 8 | . . 1 1 . . . . . 1 1 1 . . . . 3 Highest Loss Streak 11 | . . 2 2 1 1 1 . 2 8 2 1 . . . 4 11 To Critical Strikes 1 | . . . 1 . . . . . . . . . . . . . Average Slot Usage (%) 91 | . 99 100 99 99 95 94 92 91 90 91 87 86 85 86 82 86 Engine 6 | . 14 14 10 11 9 7 7 6 4 . 1 6 5 6 3 . Core 2 | . . . . . . 4 7 7 4 . 1 6 6 6 2 . Reactor 2 | . . . . . . . . . 4 15 9 . . . 2 5 Treads 7 | . 25 28 21 22 17 5 . . . . . . . . . . Leg 1 | . 1 . . . . . . . . . . . . . 5 12 Wheel 3 | . . . . . . 6 7 7 7 7 6 6 6 6 3 . Device 14 | . 14 14 20 13 12 8 14 13 8 13 20 15 20 20 12 12 Storage 8 | . 14 14 11 11 9 7 7 7 7 7 6 6 6 6 9 12 Processor 7 | . . . . . 6 13 15 15 12 7 8 13 13 13 9 5 Hackware 3 | . . . . . 8 8 7 7 7 7 8 . . . . . Protection 12 | . . . 12 19 12 12 7 8 14 15 9 17 13 13 17 22 Energy Gun 6 | . 13 14 15 11 8 12 . . . . . . . . 5 . Energy Cannon 5 | . . . . . 7 1 15 14 12 15 8 . . . 4 11 Ballistic Gun 3 | . 13 12 6 11 1 . . . . . 1 11 13 8 1 . Naked Turns 36 | . . . . . . . . . . . . . . . . 36 Heaviest Build 176 | 12 30 30 49 48 102 123 124 127 154 154 155 138 134 130 176 176 Greatest Support 80 | 20 40 40 40 40 50 28 28 28 28 28 28 28 28 28 80 60 Greatest Overweight (x) 7 | . . . 1 1 6 7 4 4 5 5 5 4 4 4 4 2 Average Overweight (x) 2 | . . . . 1 1 5 4 4 4 5 4 4 4 4 3 1 Largest Inventory Capacity 25 | 8 15 15 15 15 25 25 25 25 25 25 25 25 25 25 25 25 Average Capacity 21 | 8 14 15 15 15 15 25 25 25 25 25 25 25 25 25 24 24 Most Carried 25 | 6 15 15 15 15 22 25 25 25 25 25 25 25 25 25 25 25 Average Carried 20 | 6 13 13 14 15 15 24 24 24 22 24 24 25 24 24 21 23 Final Capacity 25 | 8 15 15 15 15 25 25 25 25 25 25 25 25 25 25 25 5 Final Carried 25 | 6 15 13 15 15 22 25 25 23 24 23 25 25 25 25 25 4 Class Distribution -------------------- 50% | Mutant 17% | Skirmisher 16% | Scavenger-Mutant 8% | Hacker-Mutant 4% | Assassin Dominant Class ---------------- Mutant | -10/Materials Scavenger-Mutant | -10/Mines Scavenger-Mutant | -9/Materials Mutant | -9/Mines Mutant | -8/Materials Mutant | -7/Factory Skirmisher | -7/Lower Caves Skirmisher | -7/Lower Caves Mutant | -7/Data Miner Mutant | -6/Proximity Caves Mutant | -6/Factory Mutant | -6/Lower Caves Skirmisher | -6/Lower Caves Assassin | -6/Zion Scavenger-Mutant | -6/Deep Caves Skirmisher | -5/Proximity Caves Resources | -11 -10 -10 -9 -9 -8 -7 -7 -7 -7 -6 -6 -6 -6 -6 -6 -5 ----------- Run | Yrd Mat Min Mat Min Mat Fac Low Low Dat Pro Fac Low Low Zio Dee Pro Matter Collected 5296 | 229 601 62 468 88 610 538 20 128 253 30 843 78 115 24 1087 122 Remotely . | . . . . . . . . . . . . . . . . . Salvage Created 11732 | 27 593 86 1745 330 1837 1118 42 266 352 386 1676 130 64 . 1992 1088 Parts 579 | 4 44 6 105 21 96 58 3 11 16 13 104 2 9 . 41 46 Haulers Intercepted 13 | . 2 . 6 . 4 . . . . . . . . . . 1 Recyclers Shooed 2 | . 1 . . . . . . . . . 1 . . . . . Parts Field Recycled . | . . . . . . . . . . . . . . . . . Retrieved Matter . | . . . . . . . . . . . . . . . . . Parts Self-Destructed 82 | . . . . . . . 8 10 . 14 . 1 5 . . 44 Prevented 2 | . . . . . . . . . . . . . 1 . . 1 Kills | -11 -10 -10 -9 -9 -8 -7 -7 -7 -7 -6 -6 -6 -6 -6 -6 -5 ------- Run | Yrd Mat Min Mat Min Mat Fac Low Low Dat Pro Fac Low Low Zio Dee Pro Combat Hostiles Destroyed 253 | . 12 1 37 9 27 21 1 8 4 11 35 3 2 . 68 14 Guns 107 | . 12 1 36 9 7 12 . . 1 . 3 1 2 . 23 . Cannons 83 | . . . . . 17 7 1 4 3 11 28 . . . . 12 AOE 47 | . . . . . . . . 3 . . 2 2 . . 38 2 Classes Destroyed 23 | 1 7 . 2 . 2 1 . 1 . . . . 1 . 4 4 Worker 4 | . . . 1 . 1 2 . . . . . . . . . . Builder 8 | . 2 1 1 . 1 . . . . . 3 . . . . . Tunneler 3 | 1 . 1 . 1 . . . . . . . . . . . . Hauler 13 | . 2 . 6 . 4 . . . . . . . . . . 1 Recycler 2 | . 1 . . . 1 . . . . . . . . . . . Mechanic 2 | . . . . . . . . . . . . . . . . 2 Operator 7 | . 2 . 1 . 1 2 . . . . 1 . . . . . Drone 1 | . . . . . . . . . . . . . . . . 1 Watcher 15 | . 2 . 5 . 5 1 . . . . 2 . . . . . Swarmer 44 | . 6 . 13 3 . 4 . 4 . 7 7 . . . . . Grunt 72 | . 6 1 16 6 16 4 . . . 2 12 2 . . . 7 Brawler 1 | . . . . . 1 . . . . . . . . . . . Duelist 5 | . . . . . . . . 2 . . . 1 . . . 2 Protector 1 | . . . . . . . . . . . . . . . . 1 Sentry 28 | . . . 8 . 9 4 . 1 . 1 5 . . . . . Specialist 2 | . . . . . . . . . . . . . . . . 2 Hunter 11 | . . . . . 1 3 . 1 . . 4 . 1 . . 1 Programmer 15 | . . . . . . 6 1 . . 1 7 . . . . . Enhanced Grunt 4 | . . . . . . . . . 4 . . . . . . . Z-Technician 4 | . . . . . . . . . . . . . . . 4 . Z-Light 6 | . . . . . . . . . . . . . . . 6 . Decomposer 1 | . . . . . . . . . . . . 1 . . . . Thief 1 | . . . . . . . . . . . . . 1 . . . Assembler 2 | . . . . . . . . . . . . . . . 2 . Assembled 55 | . . . . . . . . . . . . . . . 55 . Golem 7 | . . . . . . . . . . . . . . . 7 . Best Kill Streak 47 | 1 3 1 6 3 4 4 1 4 1 7 4 3 2 . 47 6 Combat Bots Only 43 | . 3 1 5 3 3 3 1 4 1 7 4 3 2 . 43 4 Max Kills in Single Turn 20 | 1 2 1 2 1 2 1 1 2 1 1 1 1 1 . 20 2 Gunslinging 1 | . 1 . 1 . . . . . . . . . . . 1 . Exploded 20 | . . . . . . . . 2 . . 1 1 . . 20 2 Melee . | . . . . . . . . . . . . . . . . . Uniques/NPCs Destroyed 1 | . . . . . . . . . . . . . . . 1 . Z-Imprinter (-6/Deep Caves) Combat | -11 -10 -10 -9 -9 -8 -7 -7 -7 -7 -6 -6 -6 -6 -6 -6 -5 -------- Run | Yrd Mat Min Mat Min Mat Fac Low Low Dat Pro Fac Low Low Zio Dee Pro Hostile Shots Fired 1655 | . 67 7 192 38 134 222 2 76 46 121 326 6 14 . 126 278 Missed 492 | . 12 . 59 12 30 88 . 19 7 41 99 3 2 . 38 82 Damage Taken 16575 | . 582 105 1635 333 1569 1426 32 694 1817 957 2122 35 111 . 2064 3093 Core 2071 | . 48 . 347 48 220 167 16 97 190 88 126 . . . 215 509 Absorbed by Shields 1514 | . . . . . 60 . . . . 93 684 37 85 . 247 308 Redirected to Shielding 455 | . . . . . . . . . . . 9 . . . 277 169 Ignored by Resistances 1397 | . . . . . . . . . . 73 356 . . . 415 553 Regen/Repaired (Parts) 460 | . 172 . 137 . 122 29 . . . . . . . . . . Core Remaining (%) 52 | 100 . 80 . 1 60 . . . . 20 . . . . . . Volleys Fired 830 | 3 63 6 139 25 122 74 1 15 25 26 154 8 7 . 115 47 Largest 2 | 2 2 2 2 2 2 2 2 2 2 2 2 2 2 . 2 2 Hottest 180 | 60 60 60 112 79 150 110 60 180 60 120 120 43 30 . 146 50 Shots Fired 1561 | 6 122 13 270 50 243 148 2 27 50 45 260 12 14 . 214 85 Gun 981 | 6 121 13 269 50 132 112 . . 17 . 51 8 14 . 188 . Cannon 547 | . . . . . 111 36 2 24 33 45 209 . . . 8 79 Launcher 33 | . 1 . 1 . . . . 3 . . . 4 . . 18 6 Special . | . . . . . . . . . . . . . . . . . Kinetic 310 | 3 62 6 90 25 28 . . . 17 . 51 8 14 . 6 . Thermal 1159 | 3 59 7 179 25 215 148 2 24 33 45 206 . . . 134 79 Explosive 33 | . 1 . 1 . . . . 3 . . . 4 . . 18 6 Electromagnetic 59 | . . . . . . . . . . . 3 . . . 56 . Robot Hit Streak 31 | 4 9 6 14 8 31 22 9 5 8 17 18 15 6 . 28 18 Robot Miss Streak 6 | 1 3 2 6 2 4 3 . 3 2 4 4 1 2 . 6 3 Penetration Max . | . . . . . . . . . . . . . . . . . Secondary Targets 19 | . 3 1 5 2 2 . . . . . . . . . 6 . Max Gunslinging Chain 1 | . 1 1 1 1 1 . . . . . . . . . 1 . Shots Hit Robots 1055 | 4 80 10 166 32 170 120 2 18 40 31 166 8 8 . 142 58 Core Hits 562 | 1 34 5 68 13 62 43 1 12 23 14 67 7 5 . 180 27 Critical Kills 3 | . . . . . 1 . . . . . 2 . . . . . Critical Parts Destroyed 5 | . . . 1 . . . . 1 . . 3 . . . . . Critical Strikes 27 | . . . 15 1 2 3 . 1 . . 5 . . . . . Burn 19 | . . . 14 1 1 3 . . . . . . . . . . Meltdown 3 | . . . . . 1 . . . . . 2 . . . . . Destroy 4 | . . . 1 . . . . . . . 3 . . . . . Smash 1 | . . . . . . . . 1 . . . . . . . . Melee Attacks 72 | . . . . . . 11 . 3 11 . 17 . . 27 3 . Impact 59 | . . . . . . 8 . 3 9 . 9 . . 27 3 . Slashing . | . . . . . . . . . . . . . . . . . Piercing . | . . . . . . . . . . . . . . . . . Sneak Attacks 13 | . . . . . . 3 . . 3 . 7 . . . . . Combat Hostiles . | . . . . . . . . . . . . . . . . . Follow-up Attacks . | . . . . . . . . . . . . . . . . . Damage Inflicted 29814 | 49 976 105 2353 543 3954 2592 68 855 807 992 5184 351 146 . 7419 3420 Guns 12416 | 49 976 105 2343 543 1761 1842 . . 218 . 773 135 146 . 3525 . Cannons 11974 | . . . . . 2168 746 68 516 532 992 4180 . . . 118 2654 Explosions 5242 | . . . . . . . . 253 . . 231 216 . . 3776 766 Melee 143 | . . . . . . . . 86 57 . . . . . . . Ramming 39 | . . . 10 . 25 4 . . . . . . . . . . Kinetic 2997 | 26 563 43 399 209 369 . . . 218 . 773 135 146 . 116 . Thermal 20834 | 23 413 62 1944 334 3560 2588 68 516 532 992 4411 . . . 2737 2654 Explosive 4939 | . . . . . . . . 253 . . . 216 . . 3704 766 Electromagnetic 862 | . . . . . . . . . . . . . . . 862 . Impact 143 | . . . . . . . . 86 57 . . . . . . . Slashing . | . . . . . . . . . . . . . . . . . Piercing . | . . . . . . . . . . . . . . . . . Highest Corruption 13 | . 1 1 . . . . . . . . 1 . . . 3 13 Average Corruption 2 | . 1 1 . . . . . . . . 1 . . . 3 3 Corruption Purged 1 | . . . . . . . . . . . 1 . . . . . Corruption Blocked . | . . . . . . . . . . . . . . . . . Effects 72 | . 4 3 . . . . . . . . 12 . . . 28 25 Message Errors 15 | . . . . . . . . . . . 5 . . . 6 4 Matter Fused 21 | . 3 . . . . . . . . . 2 . . . 9 7 Heat Flow Errors 8 | . . 1 . . . . . . . . 2 . . . 2 3 Energy Discharges 8 | . 1 . . . . . . . . . 2 . . . 3 2 Parts Fused 2 | . . 1 . . . . . . . . . . . . . 1 Data Loss (minor) 6 | . . . . . . . . . . . 1 . . . 2 3 Data Loss (major) 4 | . . . . . . . . . . . . . . . 2 2 Misfires 3 | . . 1 . . . . . . . . . . . . 2 . Alerts 1 | . . . . . . . . . . . . . . . 1 . Misdirections 2 | . . . . . . . . . . . . . . . . 2 Weapon Failures 2 | . . . . . . . . . . . . . . . 1 1 Overload Shots 7 | . . . . . . . . 7 . . . . . . . . Effects 1 | . . . . . . . . 1 . . . . . . . . Heat Surge 1 | . . . . . . . . 1 . . . . . . . . Overflow Damage 749 | . . . . . 15 16 . 84 4 64 135 . . . 241 190 Projectiles 414 | . . . . . 15 16 . 4 4 64 135 . . . . 176 Explosions 255 | . . . . . . . . . . . . . . . 241 14 Melee 80 | . . . . . . . . 80 . . . . . . . . Knockbacks 1 | . . . . . . . . . 1 . . . . . . . Impact 1 | . . . . . . . . . 1 . . . . . . . Kinetic . | . . . . . . . . . . . . . . . . . Secondary . | . . . . . . . . . . . . . . . . . Self-Inflicted Damage 503 | . . . . . . . . . . . 31 15 . . 209 248 Shots 12 | . . . . . . . . . . . 1 1 . . 5 5 Rammed 9 | . . . 2 1 5 1 . . . . . . . . . . Targets Rammed 9 | . . . 2 1 5 1 . . . . . . . . . . Kicked . | . . . . . . . . . . . . . . . . . Crushed . | . . . . . . . . . . . . . . . . . Highest Temperature 532 | . 78 205 150 42 171 222 3 532 227 281 249 39 4 . 336 276 Average Temperature 61 | . 43 54 38 20 44 66 2 162 103 97 34 14 2 . 81 71 Received Heat Transfer 3813 | . 234 60 489 165 745 279 . 54 . 111 468 12 . . 407 789 Effects 8 | . . . . . . . . 7 1 . . . . . . . Shutdowns 3 | . . . . . . . . 3 . . . . . . . . Energy Bleed 2 | . . . . . . . . 1 1 . . . . . . . Interference 3 | . . . . . . . . 3 . . . . . . . . Siege Activations . | . . . . . . . . . . . . . . . . . Robots Corrupted 7 | . . . . . . . . . . . . . . . 7 . Combat Hostiles 7 | . . . . . . . . . . . . . . . 7 . Parts Fried 1 | . . . . . . . . 1 . . . . . . . . Impact Corruptions 3 | . . . . . . . . 3 . . . . . . . . Robots Melted 8 | . . . 1 . 3 2 . . . . 2 . . . . . Combat Hostiles 8 | . . . 1 . 3 2 . . . . 2 . . . . . Parts Melted 63 | . . . 21 2 7 20 1 2 2 . 4 . . . 4 . Heat Transferred 26417 | 50 925 150 5380 777 5661 4588 74 631 962 703 2346 . . . 2900 1270 Parts Sabotaged . | . . . . . . . . . . . . . . . . . Parts Stolen 1 | . . . . . . . . . . . . . 1 . . . Parts Stripped . | . . . . . . . . . . . . . . . . . Power Chain Reactions 3 | . . . . . . . . . . . 2 . . . 1 . Alert | -11 -10 -10 -9 -9 -8 -7 -7 -7 -7 -6 -6 -6 -6 -6 -6 -5 ------- Run | Yrd Mat Min Mat Min Mat Fac Low Low Dat Pro Fac Low Low Zio Dee Pro Peak Influence 849 | 5 247 58 548 328 415 368 . . . . 849 . . . . . Initial 156 | . 3 1 . 156 65 112 . . . . 88 . . . . . Average 215 | 3 59 8 387 228 182 127 . . . . 280 . . . . . Maximum Alert Level 3 | . 1 . 2 1 2 1 . . . . 3 . . . . . Low Security (%) 55 | 100 98 100 8 30 56 85 . . . . 47 . . . . . Level 1 24 | . 1 . 28 69 40 14 . . . . 23 . . . . . Level 2 17 | . . . 62 . 3 . . . . . 21 . . . . . Level 3 1 | . . . . . . . . . . . 7 . . . . . Level 4 . | . . . . . . . . . . . . . . . . . Level 5 . | . . . . . . . . . . . . . . . . . High Security . | . . . . . . . . . . . . . . . . . Max Security . | . . . . . . . . . . . . . . . . . Squads Dispatched 37 | . 3 . 6 . 6 8 . . . . 13 . . . . 1 Investigation 12 | . 1 . 4 . 1 2 . . . . 4 . . . . . Extermination 9 | . . . . . . 4 . . . . 5 . . . . . Reinforcement 11 | . 2 . 2 . 2 2 . . . . 3 . . . . . Assault 2 | . . . . . . . . . . . 1 . . . . 1 Garrison 3 | . . . . . 3 . . . . . . . . . . . Intercept . | . . . . . . . . . . . . . . . . . Searches Triggered . | . . . . . . . . . . . . . . . . . Construction Impeded 1 | . . . . . . . . . . . 1 . . . . . Haulers Reinforced . | . . . . . . . . . . . . . . . . . Active Scanning Responses . | . . . . . . . . . . . . . . . . . Cargo Convoy Interrupts . | . . . . . . . . . . . . . . . . . Stealth | -11 -10 -10 -9 -9 -8 -7 -7 -7 -7 -6 -6 -6 -6 -6 -6 -5 --------- Run | Yrd Mat Min Mat Min Mat Fac Low Low Dat Pro Fac Low Low Zio Dee Pro Distress Signals 8 | . . . 1 . 3 3 . . . . 1 . . . . . Communications Jammed . | . . . . . . . . . . . . . . . . . Distress Signals . | . . . . . . . . . . . . . . . . . Times Spotted 366 | . 21 2 56 9 47 29 3 8 4 12 62 2 2 . 82 27 Peak Tracking Total 37 | . 3 2 7 3 5 3 1 4 3 8 6 3 1 . 37 8 Tactical Retreats 29 | . . . 1 . 4 1 2 . . . 6 . . . 13 2 Traps | -11 -10 -10 -9 -9 -8 -7 -7 -7 -7 -6 -6 -6 -6 -6 -6 -5 ------- Run | Yrd Mat Min Mat Min Mat Fac Low Low Dat Pro Fac Low Low Zio Dee Pro Traps Triggered 11 | . 1 . 2 . 4 1 . . . . 3 . . . . . Indirectly . | . . . . . . . . . . . . . . . . . Trap Hack Attempts 91 | . . . . . 76 . . . . . 15 . . . . . Triggered . | . . . . . . . . . . . . . . . . . Disarmed 4 | . . . . . 2 . . . . . 2 . . . . . Reprogrammed 10 | . . . . . 6 . . . . . 4 . . . . . Reused 10 | . . . . . . . . . 5 . . . . . 5 . Traps Extracted 11 | . . . . . 6 . . . 1 . 4 . . . . . Installed 11 | . . . . . . . . . 6 . . . . . 5 . Triggered 2 | . . . . . . . . . . . . . 2 . . . Most Traps Carried 6 | . . . . . 6 6 6 6 6 1 5 5 5 5 5 . Machines | -11 -10 -10 -9 -9 -8 -7 -7 -7 -7 -6 -6 -6 -6 -6 -6 -5 ---------- Run | Yrd Mat Min Mat Min Mat Fac Low Low Dat Pro Fac Low Low Zio Dee Pro Machines Disabled 7 | . . . . . 1 . . . 1 . 1 . . . 4 . Max in Single Turn 1 | . . . . . 1 . . . 1 . 1 . . . 1 . Garrison Access 2 | . . . . . 1 . . . . . 1 . . . . . Machines Repaired . | . . . . . . . . . . . . . . . . . Machines Dismantled . | . . . . . . . . . . . . . . . . . Machines Sabotaged . | . . . . . . . . . . . . . . . . . Overloaded Fab Kills . | . . . . . . . . . . . . . . . . . Hacking | -11 -10 -10 -9 -9 -8 -7 -7 -7 -7 -6 -6 -6 -6 -6 -6 -5 --------- Run | Yrd Mat Min Mat Min Mat Fac Low Low Dat Pro Fac Low Low Zio Dee Pro Machines Accessed 63 | . 8 . 11 . 14 12 1 . 4 . 13 . . . . . Terminals 39 | . 7 . 8 . 10 7 . . . . 7 . . . . . Fabricators 5 | . . . . . . 2 . . . . 3 . . . . . Repair Stations 7 | . 1 . 2 . 2 2 . . . . . . . . . . Recycling Units . | . . . . . . . . . . . . . . . . . Scanalyzers 4 | . . . 1 . 1 . . . . . 2 . . . . . Garrison Access 3 | . . . . . 1 1 . . . . 1 . . . . . Total Hacks 180 | . 22 . 30 . 38 22 1 . 27 . 40 . . . . . Successful 112 | . 14 . 13 . 25 9 1 . 27 . 23 . . . . . Failed 66 | . 7 . 16 . 13 13 . . . . 17 . . . . . Catastrophic 13 | . 1 . 2 . 1 5 . . . . 4 . . . . . Database Lockouts 2 | . 1 . 1 . . . . . . . . . . . . . Manual 65 | . 9 . 15 . 19 8 . . . . 13 . . 1 . . Terminals 102 | . 18 . 22 . 30 11 . . . . 21 . . . . . Fabricators 12 | . . . . . . 5 . . . . 7 . . . . . Repair Stations 18 | . 4 . 5 . 5 4 . . . . . . . . . . Recycling Units . | . . . . . . . . . . . . . . . . . Scanalyzers 15 | . . . 3 . 2 . . . . . 10 . . . . . Garrison Access 5 | . . . . . 1 2 . . . . 2 . . . . . Terminal Hacks 68 | . 7 . 7 . 15 2 1 . 27 . 9 . . . . . Record 11 | . . . . . . . . . 11 . . . . . . . Part Schematic 12 | . . . . . 1 . . . 9 . 2 . . . . . Robot Schematic 4 | . . . . . . . . . 4 . . . . . . . Robot Analysis 7 | . 1 . 4 . 2 . . . . . . . . . . . Prototype ID Bank 6 | . 2 . . . 1 . . . 3 . . . . . . . Open Door 1 | . . . . . . . 1 . . . . . . . . . Branch Access Points 3 | . . . . . 1 1 . . . . 1 . . . . . Terminal Index 4 | . 1 . . . 1 1 . . . . 1 . . . . . Alert Level 7 | . 1 . 1 . 3 . . . . . 2 . . . . . Unreport Threat 6 | . . . 1 . 2 . . . . . 3 . . . . . Locate Traps 3 | . 1 . 1 . 1 . . . . . . . . . . . Recall Reinforcements 2 | . . . . . 2 . . . . . . . . . . . Hauler Manifests 2 | . 1 . . . 1 . . . . . . . . . . . Fabricator Hacks 6 | . . . . . . 3 . . . . 3 . . . . . Network Status 3 | . . . . . . 1 . . . . 2 . . . . . Load Schematic 3 | . . . . . . 2 . . . . 1 . . . . . Repair Station Hacks 13 | . 4 . 3 . 4 2 . . . . . . . . . . Scan Component 7 | . 2 . 2 . 2 1 . . . . . . . . . . Repair 6 | . 2 . 1 . 2 1 . . . . . . . . . . Recycling Unit Hacks . | . . . . . . . . . . . . . . . . . Scanalyzer 10 | . . . 1 . 2 . . . . . 7 . . . . . Insert Component 5 | . . . 1 . 1 . . . . . 3 . . . . . Analyze 5 | . . . . . 1 . . . . . 4 . . . . . Garrison Access Hacks 2 | . . . . . 1 . . . . . 1 . . . . . Seal Access 2 | . . . . . 1 . . . . . 1 . . . . . Unauthorized Hacks 13 | . 3 . 2 . 3 2 . . . . 3 . . . . . Terminals 11 | . 3 . 2 . 3 1 . . . . 2 . . . . . Botnet 9 | . 2 . 2 . 2 1 . . . . 2 . . . . . Operators 2 | . 1 . . . 1 . . . . . . . . . . . Fabricators 2 | . . . . . . 1 . . . . 1 . . . . . Haulers 1 | . . . . . . . . . . . 1 . . . . . Recompile 1 | . . . . . . 1 . . . . . . . . . . Repair Stations . | . . . . . . . . . . . . . . . . . Recycling Units . | . . . . . . . . . . . . . . . . . Scanalyzers . | . . . . . . . . . . . . . . . . . Garrison Access . | . . . . . . . . . . . . . . . . . Data Cores Recovered 2 | . . . . . . 1 . . . . 1 . . . . . Used 1 | . . . . . . 1 . . . . . . . . . . Hacking Detections 51 | . 8 . 10 . 12 9 . . . . 12 . . . . . Full Trace Events 9 | . 2 . 2 . 1 1 . . . . 3 . . . . . Feedback Events 1 | . . . . . . . . . . . 1 . . . . . Hackware Fried 1 | . . . . . . . . . . . 1 . . . . . Feedback Blocked . | . . . . . . . . . . . . . . . . . Robot Schematics Acquired 6 | . . . . . . . . . 4 . . . . 2 . . Robots Built . | . . . . . . . . . . . . . . . . . Authchips . | . . . . . . . . . . . . . . . . . Time . | . . . . . . . . . . . . . . . . . Total Robot Build Rating . | . . . . . . . . . . . . . . . . . Part Schematics Acquired 29 | . . . . . 2 . . . 9 . 5 . . 13 . . Parts Built . | . . . . . . . . . . . . . . . . . Authchips . | . . . . . . . . . . . . . . . . . Time . | . . . . . . . . . . . . . . . . . Total Part Build Rating . | . . . . . . . . . . . . . . . . . Parts Repaired 6 | . 2 . 1 . 2 1 . . . . . . . . . . Time 142 | . 52 . 26 . 51 13 . . . . . . . . . . Parts Recycled . | . . . . . . . . . . . . . . . . . Recycled Matter . | . . . . . . . . . . . . . . . . . Retrieved Matter . | . . . . . . . . . . . . . . . . . Retrieved Components . | . . . . . . . . . . . . . . . . . Parts Scanalyzed 4 | . . . 1 . . . . . . . 3 . . . . . Part Schematics Acquired 4 | . . . . . 1 . . . . . 3 . . . . . Parts Damaged 1 | . . . . . . . . . . . 1 . . . . . Bothacking | -11 -10 -10 -9 -9 -8 -7 -7 -7 -7 -6 -6 -6 -6 -6 -6 -5 ------------ Run | Yrd Mat Min Mat Min Mat Fac Low Low Dat Pro Fac Low Low Zio Dee Pro Used RIF Installer . | . . . . . . . . . . . . . . . . . Robots Hacked 11 | . . . . . . 3 . . 1 . 7 . . . . . Non-combat 9 | . . . . . . 3 . . . . 6 . . . . . Combat 2 | . . . . . . . . . 1 . 1 . . . . . Robot Hacks Applied 12 | . . . . . . 3 . . 1 . 8 . . . . . parse_system 2 | . . . . . . . . . 1 . 1 . . . . . no_distress 6 | . . . . . . 2 . . . . 4 . . . . . find_chute 1 | . . . . . . . . . . . 1 . . . . . find_recycling 2 | . . . . . . 1 . . . . 1 . . . . . find_station 1 | . . . . . . . . . . . 1 . . . . . Relay Couplers Released 3 | . . . . . . . . . . . 3 . . . . . Programmers 3 | . . . . . . . . . . . 3 . . . . . Fabnet Peak Effective % . | . . . . . . . . . . . . . . . . . Robots Rewired . | . . . . . . . . . . . . . . . . . Allies Hacked . | . . . . . . . . . . . . . . . . . Hacks Repelled . | . . . . . . . . . . . . . . . . . Allies | -11 -10 -10 -9 -9 -8 -7 -7 -7 -7 -6 -6 -6 -6 -6 -6 -5 -------- Run | Yrd Mat Min Mat Min Mat Fac Low Low Dat Pro Fac Low Low Zio Dee Pro Total Allies 10 | . . 3 . 1 . . . . . . . . . 6 . . Largest Group 6 | . . 3 2 1 . . . . . . . . . 6 6 . Highest-Rated Group 310 | . . 40 24 31 . . . . . . . . . 310 310 . Highest-Rated Ally 96 | . . 16 16 31 . . . . . . . . . 96 96 . Total Orders . | . . . . . . . . . . . . . . . . . Ally Attacks 102 | . . 3 13 8 . . . . . . . . . . 64 14 Total Damage 2161 | . . 33 131 147 . . . . . . . . . . 1155 695 Kills 15 | . . 1 1 1 . . . . . . . . . . 7 5 Allies Corrupted . | . . . . . . . . . . . . . . . . . Allies Melted . | . . . . . . . . . . . . . . . . . Turrets Deployed 1 | . . . . . . . . . . . . . . . . 1 Intel | -11 -10 -10 -9 -9 -8 -7 -7 -7 -7 -6 -6 -6 -6 -6 -6 -5 ------- Run | Yrd Mat Min Mat Min Mat Fac Low Low Dat Pro Fac Low Low Zio Dee Pro Robot Analysis Total 7 | . 1 . 4 . 2 . . . . . . . . . . . Derelict Logs Recovered 6 | . . 2 . . . . . . . . . . . 2 . 2 Drone Launches . | . . . . . . . . . . . . . . . . . Drone Recoveries . | . . . . . . . . . . . . . . . . . Exploration | -11 -10 -10 -9 -9 -8 -7 -7 -7 -7 -6 -6 -6 -6 -6 -6 -5 ------------- Run | Yrd Mat Min Mat Min Mat Fac Low Low Dat Pro Fac Low Low Zio Dee Pro Turns Passed 24050 | 20 1428 684 2528 563 2889 2281 546 598 809 592 3344 360 610 1607 4018 1173 Spaces Moved 11080 | 7 714 404 993 141 1151 965 321 331 379 288 1553 210 362 933 1803 525 Core 60 | . . . . . . . . . . . . . . . . 60 Treads 3208 | . 652 404 993 141 1018 . . . . . . . . . . . Legs 1253 | 7 62 . . . . . . . . . . . . . 719 465 Wheels 6559 | . . . . . 133 965 321 331 379 288 1553 210 362 933 1084 . Hover . | . . . . . . . . . . . . . . . . . Flight . | . . . . . . . . . . . . . . . . . Fastest Speed 50 | 120 120 160 160 240 152 145 160 160 160 175 160 160 160 160 145 50 Average Speed 175 | 120 156 160 200 240 189 182 160 160 164 175 170 160 160 160 177 190 Slowest Speed 270 | 120 160 160 240 240 240 205 160 160 175 175 175 160 160 160 270 210 Overloaded Moves . | . . . . . . . . . . . . . . . . . Propulsion Burnouts . | . . . . . . . . . . . . . . . . . Robots Hopped 3 | . . . . . . . . . . . . . . . . 3 Cave-ins Triggered . | . . . . . . . . . . . . . . . . . Exploration Rate (%) 58 | 3 98 69 88 31 84 30 50 45 81 51 44 37 61 85 91 49 Regions Visited 16 Branch Regions 11 Pre-discovered Areas 4 | . . . . . . . . . 1 . . . . 2 . 1 Known Exits Taken 10 | . . . . 1 . 1 1 1 1 . 1 1 1 1 1 . Unknown Exits Taken 6 | 1 1 1 1 . 1 . . . . 1 . . . . . . Scrap Searched 11 | . . 1 . . . . 2 4 . 2 . . . 1 . 1 Spaces Dug 114 | . . . . . 1 8 . 8 . . 40 22 . 2 1 32 Terrain Destroyed 383 | . 5 . 14 . 24 9 . 32 1 5 72 78 . 2 39 102 Melee 20 | . . . . . . 8 . . . . 9 . . 2 1 . Projectile 145 | . . . . . 24 1 . 5 1 5 59 . . . 28 22 AOE 218 | . 5 . 14 . . . . 27 . . 4 78 . . 10 80 Terrain Rammed . | . . . . . . . . . . . . . . . . . Walls Destroyed . | . . . . . . . . . . . . . . . . . Machines Disabled . | . . . . . . . . . . . . . . . . . Actions | -11 -10 -10 -9 -9 -8 -7 -7 -7 -7 -6 -6 -6 -6 -6 -6 -5 --------- Run | Yrd Mat Min Mat Min Mat Fac Low Low Dat Pro Fac Low Low Zio Dee Pro Total 13990 | 11 901 431 1293 315 1613 1308 355 363 493 327 1940 221 382 1001 2426 610 Wait 1172 | . 96 17 53 148 153 172 24 3 36 9 85 . 9 31 318 18 Move 11058 | 6 713 403 992 140 1150 964 320 330 378 287 1552 209 361 932 1802 519 Hop 3 | . . . . . . . . . . . . . . . . 3 Pick Up 151 | . 12 1 25 . 17 14 4 . 5 . 19 . 2 4 40 8 Fast Attach 83 | 1 3 . 10 1 21 6 . 1 9 1 12 . 1 . 16 1 Attach 64 | . . 2 11 . 4 4 1 3 6 2 10 . . 2 14 5 Detach 60 | . 1 . 5 . 6 2 1 1 7 1 6 . . . 30 . Swap 186 | 1 7 1 18 . 28 43 1 7 7 1 36 4 . 2 28 2 Drop 192 | . 6 1 38 . 31 17 3 . 3 . 26 . 2 3 55 7 Fire 830 | 3 63 6 139 25 122 74 1 15 25 26 154 8 7 . 115 47 Melee 72 | . . . . . . 11 . 3 11 . 17 . . 27 3 . Ram . | . . . . . . . . . . . . . . . . . Kick . | . . . . . . . . . . . . . . . . . Crush 9 | . . . 2 1 5 1 . . . . . . . . . . Escape Stasis 8 | . . . . . . . . . . . 8 . . . . . Rewire . | . . . . . . . . . . . . . . . . . Trap 102 | . . . . . 76 . . . 6 . 15 . . . 5 . Miscellaneous . | . . . . . . . . . . . . . . . . . Route ------- -11/Scrapyard -10/Materials (discovered 6 exits: *Mat x3 / [*Min x2] / [Sub]) -10/Mines -9/Materials (discovered 4 exits: *Mat x3 / [*Min]) -9/Mines (discovered 2 exits: *Mat / [*Exi]) -8/Materials (discovered 3 exits: *Fac x2 / *Sto) -7/Factory (discovered 2 exits: *Low x2) -7/Lower Caves -7/Lower Caves -7/Data Miner -6/Proximity Caves -6/Factory (discovered 5 exits: [*Fac] / *Low x2 / Ext x2) -6/Lower Caves -6/Lower Caves -6/Zion (discovered 2 exits: *Dee / *Pro) -6/Deep Caves -5/Proximity Caves History --------- Turn | Location | Event 12 | -11/Scrapyard | Discovered new exit (range 3) 21 | -11/Scrapyard | Entered Materials 243 | -10/Materials | Discovered new exit (range 7) 302 | -10/Materials | Build established: Mutant 361 | -10/Materials | Discovered new exit (range 16) 381 | -10/Materials | Central database locked down 544 | -10/Materials | Discovered new exit (range 6) 595 | -10/Materials | Repaired Lgt. Treads 623 | -10/Materials | Repaired Sml. Laser 778 | -10/Materials | Discovered new exit (range 7) 1058 | -10/Materials | Discovered new exit (range 8) 1070 | -10/Materials | Discovered new exit (range 14) 1449 | -10/Materials | Entered Mines 1462 | -10/Mines | Met a Derelict bent on vengeance 1563 | -10/Mines | Received a Rocket Launcher from a helpful Derelict 1610 | -10/Mines | Learned Materials stockpile data 1739 | -10/Mines | Assisted by bots powering up and referring to "LRC-V3" 1797 | -10/Mines | Learned location of 2 exits from Materials 1871 | -10/Mines | Discovered new exit (range 11) 2066 | -10/Mines | Build established: Scavenger-Mutant 2133 | -10/Mines | Entered Materials 2133 | -9/Materials | Accompanied by 2 allies 2133 | -9/Materials | Evolved 2 slots: Utility x2 2134 | -9/Materials | Identified exit to Materials 3052 | -9/Materials | Repaired Lgt. Treads 3607 | -9/Materials | Discovered exit to Materials (range 4) 3724 | -9/Materials | Core integrity fell below 50% 3753 | -9/Materials | Core integrity fell below 20% 3867 | -9/Materials | Build established: Mutant 4028 | -9/Materials | Central database locked down 4543 | -9/Materials | Discovered new exit (range 11) 4661 | -9/Materials | Entered Mines 4689 | -9/Mines | Excavation squad dispatched 4689 | -9/Mines | A large section of the Mines collapsed 4917 | -9/Mines | Discovered exit to Materials (range 15) 4927 | -9/Mines | Received a Mining Laser from a helpful Derelict 5210 | -9/Mines | Deemed a non-threat by the Exiles lab entrance 5210 | -9/Mines | Discovered new exit (range 5) 5224 | -9/Mines | Entered Materials 5224 | -8/Materials | Evolved 2 slots: Utility x2 5394 | -8/Materials | Repaired Med. Armor Plating 5548 | -8/Materials | Garrison activated, responded to threat 5752 | -8/Materials | Discovered new exit (range 13) 6085 | -8/Materials | Discovered new exit (range 8) 6643 | -8/Materials | Discovered new exit (range 11) 6761 | -8/Materials | Repaired Imp. Light Armor Plating 6838 | -8/Materials | Identified exit to Storage 8113 | -8/Materials | Entered Factory 8113 | -7/Factory | Evolved 2 slots: Power x1, Utility x1 9150 | -7/Factory | Repaired Com. Wheel 9963 | -7/Factory | Identified exit to Lower Caves 10149 | -7/Factory | Build established: Hacker-Mutant 10394 | -7/Factory | Entered Lower Caves 10694 | -7/Lower Caves | Build established: Skirmisher 10878 | -7/Lower Caves | Discovered new exit (range 9) 10894 | -7/Lower Caves | Identified exit to Lower Caves 10940 | -7/Lower Caves | Entered another Lower Caves area 10949 | -7/Lower Caves | Encountered a Warlord checkpoint 11451 | -7/Lower Caves | Discovered new exit (range 13) 11459 | -7/Lower Caves | Attracted the attention of an 0b10 checkpoint 11520 | -7/Lower Caves | Identified exit to Data Miner 11538 | -7/Lower Caves | Entered Data Miner 11538 | -7/Data Miner | Discovered new exit (range 6) 11564 | -7/Data Miner | Identified exit to Proximity Caves 11588 | -7/Data Miner | Met Data Miner 11617 | -7/Data Miner | Learned location of Section 7 (-2) 11617 | -7/Data Miner | Acquired the access code to Warlord's prototype stash 11647 | -7/Data Miner | Received God Mode back door access code from Data Miner 11723 | -7/Data Miner | Build established: Mutant 11819 | -7/Data Miner | Data Conduit disabled 11941 | -7/Data Miner | Core integrity fell below 50% 12016 | -7/Data Miner | Found Prototype Device 12016 | -7/Data Miner | Identified Exp. Thermal Shield 12032 | -7/Data Miner | Lost 8 parts (2p1n4u1w) 12060 | -7/Data Miner | Found Exp. Thermal Shield 12238 | -7/Data Miner | Found Exp. Thermal Shield 12347 | -7/Data Miner | Entered Proximity Caves 12360 | -6/Proximity Caves | Spotted B-75 Beast 12433 | -6/Proximity Caves | Attracted the attention of an 0b10 checkpoint 12916 | -6/Proximity Caves | Discovered new exit (range 14) 12918 | -6/Proximity Caves | Destroyed 7 combat bots 12939 | -6/Proximity Caves | Entered Factory 12939 | -6/Factory | Evolved 2 slots: Utility x2 13047 | -6/Factory | Discovered new exit (range 5) 13748 | -6/Factory | Discovered new exit (range 5) 14108 | -6/Factory | Discovered new exit (range 4) 14915 | -6/Factory | Build established: Hacker-Mutant 15732 | -6/Factory | Identified exit to Lower Caves 15732 | -6/Factory | Identified exit to Extension 16089 | -6/Factory | First assault squad dispatched 16108 | -6/Factory | Imp. Hacking Suite fried by hacking feedback 16283 | -6/Factory | Entered Lower Caves 16342 | -6/Lower Caves | Build established: Mutant 16627 | -6/Lower Caves | Discovered new exit (range 12) 16641 | -6/Lower Caves | Identified exit to Lower Caves 16643 | -6/Lower Caves | Entered another Lower Caves area 16811 | -6/Lower Caves | Build established: Skirmisher 17237 | -6/Lower Caves | Discovered new exit (range 6) 17251 | -6/Lower Caves | Identified exit to Zion 17253 | -6/Lower Caves | Entered Zion 17428 | -6/Zion | Discovered new exit (range 12) 17445 | -6/Zion | Identified exit to Proximity Caves 17827 | -6/Zion | Gained Derelict followers 17938 | -6/Zion | Given A8's code to call for help 18014 | -6/Zion | Build established: Assassin 18125 | -6/Zion | Learned location of 2 exits from Factory 18810 | -6/Zion | Discovered new exit (range 5) 18812 | -6/Zion | Saw the warning signs outside the Deep Caves entrance 18835 | -6/Zion | Enhanced Grunt warped into view, answering call for help 18851 | -6/Zion | Enhanced Grunt warped into view, answering call for help 18857 | -6/Zion | Identified exit to Deep Caves 18860 | -6/Zion | Entered Deep Caves 18860 | -6/Deep Caves | Accompanied by 6 allies 19285 | -6/Deep Caves | Attacked by Z-Imprinter 19302 | -6/Deep Caves | Allies destroyed Z-Imprinter 19357 | -6/Deep Caves | Found Prototype Protection 19357 | -6/Deep Caves | Identified Zio. Weapon Casing 19361 | -6/Deep Caves | Found Prototype Device 19361 | -6/Deep Caves | Identified Zio. Metafield Generator 19391 | -6/Deep Caves | Found Zio. Weapon Casing 19610 | -6/Deep Caves | Build established: Scavenger-Mutant 19728 | -6/Deep Caves | Found Zio. Weapon Casing 19732 | -6/Deep Caves | Lost 4 allies 19818 | -6/Deep Caves | Found Prototype Protection 19821 | -6/Deep Caves | Found Zio. Weapon Casing 19907 | -6/Deep Caves | Z-Facility disabled 20640 | -6/Deep Caves | Spotted AG-66984 20673 | -6/Deep Caves | Destroyed AG-66984 20760 | -6/Deep Caves | Spotted AG-13415 20793 | -6/Deep Caves | Identified Zio. Heavy Carapace 20805 | -6/Deep Caves | Destroyed AG-13415 20817 | -6/Deep Caves | Found GOLEM Unit 20835 | -6/Deep Caves | Lost 4 parts (4u) 20880 | -6/Deep Caves | Triggered Deep Caves wall 20880 | -6/Deep Caves | Spotted AS-02522 20880 | -6/Deep Caves | Spotted AS-50820 20935 | -6/Deep Caves | Exposed GOLEM chamber 20947 | -6/Deep Caves | Destroyed AS-02522 20959 | -6/Deep Caves | Destroyed 43 combat bots 20959 | -6/Deep Caves | Destroyed AS-50820 21022 | -6/Deep Caves | Found GOLEM Unit 21359 | -6/Deep Caves | Found GOLEM Unit 21368 | -6/Deep Caves | Found GOLEM Unit 21399 | -6/Deep Caves | Found Deploy-a-Sentry 21721 | -6/Deep Caves | Discovered new exit (range 6) 21751 | -6/Deep Caves | Build established: Golem 21756 | -6/Deep Caves | Found Surveybot 24 Scanner 21759 | -6/Deep Caves | Found Surveybot 24 Chip 22021 | -6/Deep Caves | Found GOLEM Unit 22161 | -6/Deep Caves | Build established: Mutant 22845 | -6/Deep Caves | Build established: Skirmisher 22876 | -6/Deep Caves | Identified exit to Proximity Caves 22878 | -6/Deep Caves | Entered Proximity Caves 23119 | -5/Proximity Caves | Spotter reported a threat 23163 | -5/Proximity Caves | Learned Factory stockpile data 23209 | -5/Proximity Caves | Attracted the attention of an 0b10 outpost 23215 | -5/Proximity Caves | DAS Turret deployed 23352 | -5/Proximity Caves | Spotter reported a threat 23687 | -5/Proximity Caves | Core integrity fell below 50% 23838 | -5/Proximity Caves | Unaware initiated a cargo recovery operation 23871 | -5/Proximity Caves | Encountered a Derelict guarding a broken Freighter 23992 | -5/Proximity Caves | Lost 11 parts (1p8u2w) 23997 | -5/Proximity Caves | Core integrity fell below 20% 24000 | -5/Proximity Caves | System corruption reached 10% 24015 | -5/Proximity Caves | Released all parts (5) 24051 | -5/Proximity Caves | Destroyed by P-70 Sage with Tesla Rifle Last Messages --------------- 23968_ Adv. Heat Sink fries itself beyond repair. 23970_ Adv. Cooling System self-destruct mechanism malfunctions. 23971_ Antimatter Reactor fries itself beyond repair. 23992_ The unstable cave ceiling collapses. 23992_ Prototype Device crushed. 23993_ Lrn. Missile Launcher destroyed. 23994_ The unstable cave ceiling collapses. 23997_ System corrupted: Matter fused (-6). 23997_ The unstable cave ceiling collapses. 23997_ Prototype Device crushed. 24008_ The unstable cave ceiling collapses. 24008_ Prototype Device crushed. 24008_ The unstable cave ceiling collapses. 24015_ Released Huge Storage Unit. 24015_ Released Asb. Biocell Array. 24015_ Released Imp. Signal Interpreter. 24015_ Released Asb. Alloy Leg. 24016_ The unstable cave ceiling collapses. 24018_ System corrupted: Component data lost. 24036_ R3:KYS04SB2YC R/GL&=J EIKDK6 7SYW= Map ----- +----------------------------------------------------+ | ????????????? ### # ###???????????? | | ????????????? ## ? # ##???????????? | | ????????????? # ## ### ####???????????? | | ?????????????## ## #### #### ???????????? | | ?????????????## # ## ####?????????????? | | ?????????????## # ###??????????????? | | ?????????????### ## ???????????????? | | ?????????????### #### ?????????????? | | ????????????#### #### ### #??????????? | | ??????? ?? ### ##### ### ##??????????? | | ?#####?## ##### ##?? ##??????????? | | ?######## ### #### ?? #??????????? | | ### ### ### ##### ### ???????????????? | | ## ## ? #### #### ##### ???????????????? | | # ## ?#### ### ###### ??????????????? | | # ###?### ## ######## ??????????????? | | # ##### ## ########??????????????? | | ## ##### #### p ##?????????????????? | | ### #### "### ###?????????????????? | | #### #"# "### ####?????????????????? | | #### ""## ####??????????????????? | | ### "## ###???????????????????? | | ### ##????#####???????????? | | % #### ###???#####???????????? | | #### ######## ###########??? | | ### % % ## ####@ #######"###########??? | | #### ##### #### ####"#"%" ##??? | | #### % ######### ### %%###+#### ##??? | | #### %"## ####### ### % #" # # ##??? | | ### "#### ??## #### #" # ##??? | | ## "##### ### ###### #" + ##### | | ####?? #### #######"%#" + ##### | | ##??? ##### ##??###" #" # ## | | ## ###?? ##### ##???### #" # # # | | # ### ## ?? ######### ###???###%###+#### % | | ##### ##?? ###?##########????## ##%%% | | # ##?? ######?##########?######## ###;% | | ##??############################ ####= | | ##??#### ##### #### ############ ######t | | ##??#### ## ## ### ###### | | ####### ### ######## #### | | ####### #### ######## ## | | # ##### ## ### #### ######## #### # | | #### #### ######## #### ######## #### # | | ##### ### ######### ###" % # | | ??#### ## ###### #### ######### # | | ???#### ##### ### ########" # | | ????#### #### ##???### | | ?????##" #"# #### | | ?????############ ## ##### ########## # | +----------------------------------------------------+ Best States ------------- Heat Dissipation 89 Energy Generation 45 Energy Capacity 1100 Matter Stores 300 Matter Capacity 300 Sight Range 16 Robot Scan Range 16 Terrain Scan Density 10 Additional Mass Support 20 EM Shielding 2 Armor Coverage 1350 Resistance: KI 15 Resistance: TH 30 Resistance: EX 15 Resistance: EM 15 Resistance: I 15 Resistance: S 15 Resistance: P 15 Power Shielding 33 Propulsion Shielding 66 Utility Shielding 66 Weapon Shielding 100 Phase Shifting 15 Evasion (%) 55 Targeting Accuracy 8 Recoil Reduction 2 Offensive Hacking 22 Authchip Count 5 Trap Extractor Capacity 6 Item Schematics ----------------- Huge Storage Unit | -8/Materials | Hacked Structural Scanner | -8/Materials | Scanalyzed Combat Drone Bay | -7/Data Miner | Free Lgt. Regenerative Plating | -7/Data Miner | Free Cld. Aerolev Unit | -7/Data Miner | Free Exp. Power Shielding | -7/Data Miner | Free Scatter Rocket Array | -7/Data Miner | Free Nuclear Pulse Array | -7/Data Miner | Free Adv. Field Recycling Unit | -7/Data Miner | Free Imp. Plasma Cutter | -7/Data Miner | Free Adv. Sensor Array | -7/Data Miner | Free Force Field | -6/Factory | Scanalyzed Antimatter Reactor | -6/Factory | Scanalyzed Imp. Utility Shielding | -6/Factory | Scanalyzed Weapon Mount | -6/Factory | Hacked Hyb. Deuterium Engine | -6/Factory | Hacked Magnetic Acceleration Cannon | -6/Zion | Archive Imp. Transmission Jammer | -6/Zion | Archive Power Amplifier | -6/Zion | Archive Angular Momentum Engine | -6/Zion | Archive Hyp. Coil Gun | -6/Zion | Archive Adv. Plasma Cannon | -6/Zion | Archive Hvy. Gauss Cannon | -6/Zion | Archive Imp. Coolant Injector | -6/Zion | Archive Adv. Melee Analysis Suite | -6/Zion | Archive Tesla Rifle | -6/Zion | Archive EM Disruption Field | -6/Zion | Archive Thermic Laser | -6/Zion | Archive Phase Gun | -6/Zion | Archive Robot Schematics ------------------ A-15 Conveyor | -7/Data Miner | Free G-50 Soldier | -7/Data Miner | Free G-47 Trooper | -7/Data Miner | Free R-10 Processor | -7/Data Miner | Free P-60 Hacker | -6/Zion | Archive H-77 Assassin | -6/Zion | Archive Fabricated ------------ Nothing Alien Tech Used ----------------- None Achievements -------------- None Challenges ------------ None Game ------ Seed RagnarokMachineLeg Manual? 0 Play Time 04:05:32 Cumulative 241.0 hours Start 2024.04.21 @ 12:39:51 End 2024.04.21 @ 17:35:28 Sessions 1 Manual Loads 0 Difficulty Rogue Special Mode None Game No. 154 Rogue 10 Adventurer 144 Explorer 0 Win Type - Total 4 Types 2/0/1/1/0/0/0/0/0 Lore% 63 Gallery% 74 Achievement% 62 Wizard Run 0 Options --------- Layout 0 ASCII 0 Keyboard 0 Movement Mouse Keybinds 0 Fullscreen 2 Font 20/SmallcapsGlow Map View 66x50 Zoom Use 0% Tactical HUD 1 Map Filters NONE Filters NONE Steam X RUN: 1d1c6f50-3024-4963-9081-b4d948488420